[Event "Lithuanian Chess League 2021"]
[Site "Various cities"]
[Date "2021.05.15"]
[Round "6.16"]
[White "Kalvaitis, Sigitas"]
[Black "Sulskis, Sarunas"]
[Result "0-1"]
[WhiteElo "2184"]
[BlackElo "2518"]
[PlyCount "64"]
[TimeControl "90/40+30:0"]
[WhiteClock "0:07:44"]
[BlackClock "0:05:11"]

1. e4 {[%emt 0:00:02]} e6 {[%emt 0:00:16]} 2. d4 {[%emt 0:00:59]} d5 {[%emt 0:
00:06]} 3. e5 {[%emt 0:01:15]} Ne7 {[%emt 0:03:03]} 4. Bd3 {[%emt 0:05:58]} Qd7
{[%emt 0:04:23]} 5. Ne2 {[%emt 0:08:21]} b6 {[%emt 0:07:39]} 6. O-O {[%emt 0:
05:46]} Ba6 {[%emt 0:07:35]} 7. Bxa6 {[%emt 0:01:52]} Nxa6 {[%emt 0:00:07]} 8.
a4 {[%emt 0:01:56]} c5 {[%emt 0:02:04]} 9. a5 {[%emt 0:03:15]} b5 {[%emt 0:02:
07]} 10. c3 {[%emt 0:07:01]} Rc8 {[%emt 0:02:08]} 11. Be3 {[%emt 0:03:41]} Nf5
{[%emt 0:04:53]} 12. Ng3 {[%emt 0:03:30]} Nxe3 {[%emt 0:08:15]} 13. fxe3 {
[%emt 0:03:05]} g6 {[%emt 0:00:10]} 14. Nd2 {[%emt 0:10:20]} Bg7 {[%emt 0:01:
30]} 15. Qe2 {[%emt 0:01:30]} O-O {[%emt 0:01:03]} 16. Rf6 {[%emt 0:06:08]} Nc7
{[%emt 0:12:09]} 17. Raf1 {[%emt 0:02:10]} Ne8 {[%emt 0:09:12]} 18. R6f4 {
[%emt 0:06:18]} b4 {[%emt 0:01:45]} 19. Nf3 {[%emt 0:04:52]} bxc3 {[%emt 0:03:
44]} 20. bxc3 {[%emt 0:00:05]} cxd4 {[%emt 0:00:17]} 21. cxd4 {[%emt 0:00:25]}
Qe7 {[%emt 0:04:48]} 22. e4 {[%emt 0:02:58]} Nc7 {[%emt 0:02:06]} 23. Nd2 {
[%emt 0:04:33]} Qb4 {[%emt 0:04:25]} 24. Nf3 {[%emt 0:01:49]} dxe4 {[%emt 0:05:
41]} 25. Qxe4 {[%emt 0:01:24]} Nd5 {[%emt 0:01:17]} 26. Rh4 {[%emt 0:00:12]}
Qb3 {[%emt 0:02:22]} 27. Re1 {[%emt 0:01:27]} Rc2 {[%emt 0:04:01]} 28. Rxh7 {
[%emt 0:05:11]} Kxh7 {[%emt 0:00:59]} 29. Ng5+ {[%emt 0:00:06]} Kg8 {[%emt 0:
00:09]} 30. Qh4 {[%emt 0:00:11]} Re8 {[%emt 0:01:40]} 31. Rf1 {[%emt 0:02:33]}
Qe3+ {[%emt 0:00:52]} 32. Kh1 {[%emt 0:00:06]} Rc1 {[%emt 0:00:22]} 0-1

[Event "Lithuanian Chess League 2021"]
[Site "Various cities"]
[Date "2021.05.15"]
[Round "6.17"]
[White "Bieliauskas, Marius"]
[Black "Vasylius, Kestutis"]
[Result "0-1"]
[WhiteElo "2201"]
[BlackElo "2064"]
[PlyCount "117"]
[TimeControl "90/40+30:0"]
[WhiteClock "0:04:49"]
[BlackClock "0:36:49"]

1. Nf3 {[%emt 0:00:11]} d5 {[%emt 0:00:38]} 2. e3 {[%emt 0:00:52]} Nf6 {[%emt
0:03:27]} 3. c4 {[%emt 0:00:12]} e6 {[%emt 0:00:34]} 4. b3 {[%emt 0:01:32]} c5
{[%emt 0:00:53]} 5. cxd5 {[%emt 0:03:48]} Nxd5 {[%emt 0:01:43]} 6. Bb2 {[%emt
0:01:56]} Nc6 {[%emt 0:00:39]} 7. Nc3 {[%emt 0:01:24]} a6 {[%emt 0:01:30]} 8.
a3 {[%emt 0:04:10]} b6 {[%emt 0:06:59]} 9. Qc2 {[%emt 0:04:56]} Bb7 {[%emt 0:
01:57]} 10. Be2 {[%emt 0:01:17]} Rc8 {[%emt 0:05:44]} 11. O-O {[%emt 0:02:00]}
Nf6 {[%emt 0:04:10]} 12. Rac1 {[%emt 0:05:20]} Be7 {[%emt 0:01:46]} 13. Rfd1 {
[%emt 0:00:52]} Nd4 {[%emt 0:01:42]} 14. exd4 {[%emt 0:08:08]} cxd4 {[%emt 0:
00:18]} 15. Qb1 {[%emt 0:01:57]} dxc3 {[%emt 0:00:54]} 16. dxc3 {[%emt 0:00:03]
} Qc7 {[%emt 0:00:19]} 17. c4 {[%emt 0:01:23]} Be4 {[%emt 0:01:56]} 18. Qa1 {
[%emt 0:01:15]} O-O {[%emt 0:04:28]} 19. Nd2 {[%emt 0:03:44]} Bc6 {[%emt 0:04:
14]} 20. Bf3 {[%emt 0:01:18]} Rfd8 {[%emt 0:01:06]} 21. Bxc6 {[%emt 0:01:04]}
Qxc6 {[%emt 0:00:07]} 22. Nf3 {[%emt 0:00:11]} Nh5 {[%emt 0:01:33]} 23. Rxd8+ {
[%emt 0:04:09]} Rxd8 {[%emt 0:00:53]} 24. Rd1 {[%emt 0:01:01]} Rxd1+ {[%emt 0:
02:59]} 25. Qxd1 {[%emt 0:00:23]} Nf4 {[%emt 0:00:23]} 26. g3 {[%emt 0:11:17]}
Nh3+ {[%emt 0:04:43]} 27. Kg2 {[%emt 0:02:08]} Ng5 {[%emt 0:00:37]} 28. h4 {
[%emt 0:00:37]} Ne4 {[%emt 0:01:34]} 29. Ne5 {[%emt 0:02:25]} Qb7 {[%emt 0:04:
18]} 30. f3 {[%emt 0:02:15]} Nd6 {[%emt 0:01:17]} 31. h5 {[%emt 0:04:23]} f6 {
[%emt 0:05:01]} 32. Ng4 {[%emt 0:02:14]} Nf5 {[%emt 0:01:40]} 33. h6 {[%emt 0:
04:54]} Kf7 {[%emt 0:01:45]} 34. hxg7 {[%emt 0:07:27]} h5 {[%emt 0:00:54]} 35.
Qe2 {[%emt 0:00:37]} Nxg7 {[%emt 0:03:42]} 36. Nh6+ {[%emt 0:03:45]} Kf8 {
[%emt 0:03:39]} 37. Qd3 {[%emt 0:04:22]} f5 {[%emt 0:00:53]} 38. Qd4 {[%emt 0:
06:01]} Bg5 {[%emt 0:00:24]} 39. Bc3 {[%emt 0:01:05]} a5 {[%emt 0:04:13]} 40.
b4 {[%emt 0:01:51]} Qe7 {[%emt 0:02:32]} 41. bxa5 {[%emt 0:01:44]} bxa5 {[%emt
0:00:11]} 42. Bxa5 {[%emt 0:02:08]} Qxa3 {[%emt 0:00:23]} 43. Bb6 {[%emt 0:15:
50]} Qa2+ {[%emt 0:01:57]} 44. Kh1 {[%emt 0:05:38]} Bxh6 {[%emt 0:04:34]} 45.
Qf6+ {[%emt 0:00:31]} Kg8 {[%emt 0:00:24]} 46. Qxh6 {[%emt 0:00:08]} Qxc4 {
[%emt 0:00:43]} 47. Qe3 {[%emt 0:00:29]} h4 {[%emt 0:01:03]} 48. gxh4 {[%emt 0:
00:45]} Qxh4+ {[%emt 0:00:08]} 49. Kg2 {[%emt 0:00:17]} Kf7 {[%emt 0:02:16]}
50. Qc1 {[%emt 0:01:58]} Nh5 {[%emt 0:00:45]} 51. Qc7+ {[%emt 0:00:30]} Kg6 {
[%emt 0:00:09]} 52. Be3 {[%emt 0:00:16]} f4 {[%emt 0:03:04]} 53. Bf2 {[%emt 0:
00:41]} Ng3 {[%emt 0:00:20]} 54. Qc1 {[%emt 0:01:01]} Qg5 {[%emt 0:01:58]} 55.
Qb1+ {[%emt 0:00:59]} Kh6 {[%emt 0:01:36]} 56. Qb2 {[%emt 0:01:08]} e5 {[%emt
0:03:37]} 57. Qb6+ {[%emt 0:00:32]} Kh5 {[%emt 0:00:17]} 58. Qa7 {[%emt 0:00:
30]} Qg6 {[%emt 0:01:28]} 59. Qb8 {[%emt 0:01:22]} 0-1

[Event "Lithuanian Chess League 2021"]
[Site "Various cities"]
[Date "2021.05.15"]
[Round "6.18"]
[White "Jonkus, Lukas"]
[Black "Steponavicius, Stasys"]
[Result "0-1"]
[WhiteElo "1845"]
[BlackElo "2193"]
[PlyCount "54"]
[TimeControl "90/40+30:0"]
[WhiteClock "0:10:37"]
[BlackClock "0:50:53"]

1. e4 {[%emt 0:00:02]} c5 {[%emt 0:00:30]} 2. Nf3 {[%emt 0:00:06]} Nc6 {[%emt
0:00:06]} 3. d4 {[%emt 0:00:31]} cxd4 {[%emt 0:00:08]} 4. Nxd4 {[%emt 0:00:08]}
Nf6 {[%emt 0:00:08]} 5. Nc3 {[%emt 0:02:38]} e5 {[%emt 0:00:09]} 6. Ndb5 {
[%emt 0:01:59]} d6 {[%emt 0:00:09]} 7. Nd5 {[%emt 0:07:19]} Nxd5 {[%emt 0:00:
09]} 8. exd5 {[%emt 0:00:13]} Ne7 {[%emt 0:00:09]} 9. c4 {[%emt 0:03:02]} Ng6 {
[%emt 0:00:17]} 10. Bd3 {[%emt 0:09:15]} Be7 {[%emt 0:00:55]} 11. Qc2 {[%emt 0:
06:27]} O-O {[%emt 0:07:32]} 12. Bd2 {[%emt 0:04:22]} f5 {[%emt 0:03:18]} 13.
O-O-O {[%emt 0:01:39]} Bd7 {[%emt 0:02:04]} 14. Nc3 {[%emt 0:01:40]} e4 {[%emt
0:01:51]} 15. Be2 {[%emt 0:00:58]} Ne5 {[%emt 0:01:06]} 16. f4 {[%emt 0:03:07]}
exf3 {[%emt 0:01:27]} 17. gxf3 {[%emt 0:05:22]} Rc8 {[%emt 0:04:04]} 18. b3 {
[%emt 0:01:28]} f4 {[%emt 0:05:23]} 19. Bd3 {[%emt 0:15:52]} Nxd3+ {[%emt 0:02:
02]} 20. Qxd3 {[%emt 0:00:02]} b5 {[%emt 0:07:32]} 21. cxb5 {[%emt 0:05:52]}
Bf5 {[%emt 0:01:47]} 22. Qe2 {[%emt 0:05:09]} Bf6 {[%emt 0:03:19]} 23. Kb2 {
[%emt 0:01:39]} Re8 {[%emt 0:00:21]} 24. Qg2 {[%emt 0:03:55]} Qa5 {[%emt 0:02:
35]} 25. Rc1 {[%emt 0:00:28]} Re3 {[%emt 0:01:17]} 26. Rhe1 {[%emt 0:08:27]}
Rcxc3 {[%emt 0:04:07]} 27. Rxe3 {[%emt 0:01:51]} Rc2+ {[%emt 0:00:35]} 0-1

[Event "Lithuanian Chess League 2021"]
[Site "Various cities"]
[Date "2021.05.15"]
[Round "6.19"]
[White "Solys, Laimutis"]
[Black "Maciuitis, Ignas"]
[Result "1/2-1/2"]
[WhiteElo "2319"]
[BlackElo "1789"]
[PlyCount "78"]
[TimeControl "90/40+30:0"]
[WhiteClock "0:01:20"]
[BlackClock "0:01:43"]

1. e4 {[%emt 0:00:06]} e6 {[%emt 0:00:08]} 2. d4 {[%emt 0:00:08]} d5 {[%emt 0:
00:04]} 3. Nc3 {[%emt 0:00:27]} Bb4 {[%emt 0:00:08]} 4. Nge2 {[%emt 0:00:11]}
Nf6 {[%emt 0:09:36]} 5. e5 {[%emt 0:00:35]} Nfd7 {[%emt 0:00:09]} 6. a3 {[%emt
0:02:18]} Be7 {[%emt 0:01:25]} 7. f4 {[%emt 0:03:33]} c5 {[%emt 0:01:12]} 8.
Be3 {[%emt 0:00:49]} a6 {[%emt 0:01:26]} 9. dxc5 {[%emt 0:03:43]} Bxc5 {[%emt
0:00:57]} 10. Bxc5 {[%emt 0:08:07]} Nxc5 {[%emt 0:00:28]} 11. Nd4 {[%emt 0:00:
08]} Nc6 {[%emt 0:08:12]} 12. Qd2 {[%emt 0:01:00]} Nxd4 {[%emt 0:05:46]} 13.
Qxd4 {[%emt 0:00:16]} Qc7 {[%emt 0:00:25]} 14. Be2 {[%emt 0:05:14]} O-O {[%emt
0:02:59]} 15. O-O {[%emt 0:05:39]} f6 {[%emt 0:02:40]} 16. exf6 {[%emt 0:04:53]
} Rxf6 {[%emt 0:00:05]} 17. g3 {[%emt 0:05:18]} Bd7 {[%emt 0:03:16]} 18. Bf3 {
[%emt 0:09:17]} Kh8 {[%emt 0:11:14]} 19. Rad1 {[%emt 0:05:52]} Rh6 {[%emt 0:03:
15]} 20. Rfe1 {[%emt 0:05:48]} Rf8 {[%emt 0:02:31]} 21. Re5 {[%emt 0:01:42]} b6
{[%emt 0:01:06]} 22. Bg4 {[%emt 0:07:20]} Nb7 {[%emt 0:06:38]} 23. Nxd5 {[%emt
0:02:06]} Qxc2 {[%emt 0:03:21]} 24. Re2 {[%emt 0:01:42]} Qg6 {[%emt 0:01:16]}
25. Ne3 {[%emt 0:01:21]} Bb5 {[%emt 0:01:55]} 26. Ree1 {[%emt 0:08:08]} Nc5 {
[%emt 0:01:52]} 27. Be2 {[%emt 0:04:34]} Bc6 {[%emt 0:11:32]} 28. Nf1 {[%emt 0:
03:43]} Qf5 {[%emt 0:03:16]} 29. Qd6 {[%emt 0:03:11]} e5 {[%emt 0:00:28]} 30.
Ne3 {[%emt 0:01:34]} Qc8 {[%emt 0:02:33]} 31. Qe7 {[%emt 0:04:06]} Re8 {[%emt
0:00:35]} 32. Bg4 {[%emt 0:00:32]} Qb8 {[%emt 0:01:13]} 33. Qg5 {[%emt 0:01:43]
} Ne4 {[%emt 0:00:41]} 34. Qf5 {[%emt 0:00:15]} Rf6 {[%emt 0:01:35]} 35. Qh5 {
[%emt 0:00:15]} exf4 {[%emt 0:03:33]} 36. Nd5 {[%emt 0:01:54]} Bxd5 {[%emt 0:
01:47]} 37. Qxd5 {[%emt 0:00:16]} Rd6 {[%emt 0:01:59]} 38. Qc4 {[%emt 0:00:29]}
Rxd1 {[%emt 0:01:14]} 39. Bxd1 {[%emt 0:00:08]} Ng5 {[%emt 0:06:05]} 1/2-1/2

[Event "Lithuanian Chess League 2021"]
[Site "Various cities"]
[Date "2021.05.15"]
[Round "6.20"]
[White "Kurmis, Edvinas"]
[Black "Tamosiunas, Tomas"]
[Result "1/2-1/2"]
[WhiteElo "1654"]
[BlackElo "1947"]
[PlyCount "68"]
[TimeControl "90/40+30:0"]
[WhiteClock "0:04:59"]
[BlackClock "0:16:37"]

1. d4 {[%emt 0:00:02]} Nf6 {[%emt 0:00:07]} 2. Bf4 {[%emt 0:00:07]} e6 {[%emt
0:00:06]} 3. c3 {[%emt 0:00:12]} b6 {[%emt 0:00:05]} 4. Nf3 {[%emt 0:00:21]}
Bb7 {[%emt 0:00:08]} 5. e3 {[%emt 0:00:26]} Be7 {[%emt 0:04:01]} 6. Bd3 {[%emt
0:00:35]} O-O {[%emt 0:00:47]} 7. h3 {[%emt 0:01:07]} d6 {[%emt 0:00:50]} 8.
Qc2 {[%emt 0:04:17]} c5 {[%emt 0:00:32]} 9. Nbd2 {[%emt 0:01:35]} Nc6 {[%emt 0:
00:26]} 10. O-O {[%emt 0:01:12]} Rc8 {[%emt 0:01:49]} 11. Qb1 {[%emt 0:04:18]}
h6 {[%emt 0:06:59]} 12. b4 {[%emt 0:09:43]} cxb4 {[%emt 0:05:35]} 13. cxb4 {
[%emt 0:00:56]} Nd5 {[%emt 0:14:15]} 14. b5 {[%emt 0:08:28]} Ncb4 {[%emt 0:03:
21]} 15. Bh2 {[%emt 0:15:55]} Nxd3 {[%emt 0:01:24]} 16. Qxd3 {[%emt 0:00:09]}
Rc3 {[%emt 0:01:57]} 17. Qb1 {[%emt 0:00:48]} Nf6 {[%emt 0:05:21]} 18. Qb2 {
[%emt 0:01:25]} Qc7 {[%emt 0:00:35]} 19. Rfc1 {[%emt 0:07:09]} Rc8 {[%emt 0:01:
04]} 20. Rxc3 {[%emt 0:04:48]} Qxc3 {[%emt 0:00:16]} 21. Qxc3 {[%emt 0:00:20]}
Rxc3 {[%emt 0:00:07]} 22. a4 {[%emt 0:00:18]} Rc2 {[%emt 0:12:58]} 23. Kf1 {
[%emt 0:06:51]} Ne4 {[%emt 0:06:23]} 24. Nxe4 {[%emt 0:05:30]} Bxe4 {[%emt 0:
00:09]} 25. Ne1 {[%emt 0:03:37]} Rc8 {[%emt 0:04:27]} 26. f3 {[%emt 0:03:29]}
Bd5 {[%emt 0:01:04]} 27. Ke2 {[%emt 0:04:02]} Bc4+ {[%emt 0:02:15]} 28. Nd3 {
[%emt 0:03:41]} Bb3 {[%emt 0:07:07]} 29. Nb4 {[%emt 0:01:49]} Bf8 {[%emt 0:03:
19]} 30. Nc6 {[%emt 0:01:03]} a5 {[%emt 0:00:52]} 31. Kd3 {[%emt 0:01:09]} d5 {
[%emt 0:01:42]} 32. Kc3 {[%emt 0:00:36]} Bc4 {[%emt 0:00:19]} 33. Kb2 {[%emt 0:
02:58]} Bb4 {[%emt 0:00:26]} 34. Nxb4 {[%emt 0:03:36]} axb4 {[%emt 0:00:05]}
1/2-1/2

[Event "Lithuanian Chess League 2021"]
[Site "Various cities"]
[Date "2021.05.15"]
[Round "6.21"]
[White "Bagvilas, Lukas"]
[Black "Maziukas, Kasparas"]
[Result "1/2-1/2"]
[WhiteElo "2011"]
[BlackElo "1870"]
[PlyCount "89"]
[TimeControl "90/40+30:0"]
[WhiteClock "0:45:29"]
[BlackClock "0:28:24"]

1. e4 {[%emt 0:00:02]} e5 {[%emt 0:00:05]} 2. Nc3 {[%emt 0:00:10]} Nf6 {[%emt
0:00:24]} 3. g3 {[%emt 0:00:50]} d5 {[%emt 0:00:26]} 4. exd5 {[%emt 0:00:45]}
Nxd5 {[%emt 0:00:07]} 5. Bg2 {[%emt 0:00:06]} Nxc3 {[%emt 0:00:13]} 6. bxc3 {
[%emt 0:00:06]} Nc6 {[%emt 0:00:13]} 7. d3 {[%emt 0:00:09]} Bc5 {[%emt 0:01:01]
} 8. Be3 {[%emt 0:00:14]} Bb6 {[%emt 0:04:05]} 9. Nf3 {[%emt 0:00:45]} Qf6 {
[%emt 0:01:31]} 10. Nd2 {[%emt 0:00:43]} O-O {[%emt 0:01:33]} 11. O-O {[%emt 0:
00:25]} Bf5 {[%emt 0:01:51]} 12. Ne4 {[%emt 0:02:18]} Qg6 {[%emt 0:00:34]} 13.
Qd2 {[%emt 0:09:24]} Rad8 {[%emt 0:01:42]} 14. Rab1 {[%emt 0:03:33]} Bc8 {
[%emt 0:07:00]} 15. Nc5 {[%emt 0:06:51]} Rfe8 {[%emt 0:07:10]} 16. Nb3 {[%emt
0:02:32]} e4 {[%emt 0:08:06]} 17. Bxb6 {[%emt 0:09:55]} axb6 {[%emt 0:00:15]}
18. d4 {[%emt 0:14:20]} Ne5 {[%emt 0:32:23]} 19. Qf4 {[%emt 0:00:09]} Nf3+ {
[%emt 0:04:38]} 20. Bxf3 {[%emt 0:00:35]} exf3 {[%emt 0:00:05]} 21. Rfe1 {
[%emt 0:04:29]} Qxc2 {[%emt 0:04:48]} 22. Qxc7 {[%emt 0:00:21]} Qxa2 {[%emt 0:
06:47]} 23. Qxb6 {[%emt 0:01:11]} Bf5 {[%emt 0:03:12]} 24. Rbc1 {[%emt 0:00:26]
} Qa8 {[%emt 0:04:25]} 25. Nd2 {[%emt 0:06:19]} Bg4 {[%emt 0:02:06]} 26. Qb5 {
[%emt 0:03:49]} Qc8 {[%emt 0:03:40]} 27. Qd3 {[%emt 0:00:39]} Qc6 {[%emt 0:01:
00]} 28. d5 {[%emt 0:01:42]} Qf6 {[%emt 0:00:47]} 29. c4 {[%emt 0:00:33]} h5 {
[%emt 0:02:44]} 30. h4 {[%emt 0:04:34]} Re2 {[%emt 0:01:52]} 31. Rxe2 {[%emt 0:
00:20]} fxe2 {[%emt 0:00:02]} 32. f3 {[%emt 0:00:48]} Re8 {[%emt 0:00:30]} 33.
Re1 {[%emt 0:01:40]} Bf5 {[%emt 0:00:48]} 34. Ne4 {[%emt 0:00:19]} Qb6+ {[%emt
0:00:54]} 35. Kg2 {[%emt 0:00:56]} Bxe4 {[%emt 0:00:39]} 36. fxe4 {[%emt 0:00:
11]} Qf6 {[%emt 0:00:33]} 37. Rxe2 {[%emt 0:00:11]} g5 {[%emt 0:00:11]} 38. Rf2
{[%emt 0:05:46]} Qg6 {[%emt 0:00:14]} 39. hxg5 {[%emt 0:00:47]} Qxg5 {[%emt 0:
00:52]} 40. Rf5 {[%emt 0:02:29]} Qg4 {[%emt 0:00:35]} 41. Rf4 {[%emt 0:01:19]}
Qg5 {[%emt 0:00:31]} 42. Qf3 {[%emt 0:00:09]} Ra8 {[%emt 0:03:06]} 43. Rxf7 {
[%emt 0:00:53]} Ra2+ {[%emt 0:00:07]} 44. Kg1 {[%emt 0:02:23]} Ra1+ {[%emt 0:
00:32]} 45. Kg2 {[%emt 0:01:45]} 1/2-1/2

[Event "Lithuanian Chess League 2021"]
[Site "Various cities"]
[Date "2021.05.15"]
[Round "6.22"]
[White "Likatavicius, Rapolas"]
[Black "Povilaitis, Tomas"]
[Result "1/2-1/2"]
[WhiteElo "1929"]
[BlackElo "1846"]
[PlyCount "74"]
[TimeControl "90/40+30:0"]
[WhiteClock "0:01:57"]
[BlackClock "0:30:30"]

1. d4 {[%emt 0:00:01]} Nf6 {[%emt 0:00:15]} 2. Nf3 {[%emt 0:00:05]} e6 {[%emt
0:00:23]} 3. c4 {[%emt 0:00:05]} d5 {[%emt 0:00:06]} 4. Nc3 {[%emt 0:00:18]}
Be7 {[%emt 0:00:31]} 5. Bf4 {[%emt 0:00:10]} O-O {[%emt 0:00:31]} 6. e3 {[%emt
0:00:03]} b6 {[%emt 0:00:12]} 7. cxd5 {[%emt 0:02:04]} Nxd5 {[%emt 0:01:02]} 8.
Nxd5 {[%emt 0:00:16]} exd5 {[%emt 0:02:49]} 9. a3 {[%emt 0:01:25]} c5 {[%emt 0:
01:14]} 10. dxc5 {[%emt 0:02:35]} bxc5 {[%emt 0:00:12]} 11. Qd2 {[%emt 0:04:25]
} Qd7 {[%emt 0:07:24]} 12. Be2 {[%emt 0:04:24]} Ba6 {[%emt 0:01:51]} 13. Bxa6 {
[%emt 0:02:29]} Nxa6 {[%emt 0:00:02]} 14. O-O {[%emt 0:00:18]} Rfd8 {[%emt 0:
05:02]} 15. Qa5 {[%emt 0:07:42]} Qb7 {[%emt 0:08:59]} 16. Rfd1 {[%emt 0:03:34]}
c4 {[%emt 0:03:23]} 17. Be5 {[%emt 0:10:29]} Nc5 {[%emt 0:07:05]} 18. Qc3 {
[%emt 0:01:43]} Ne4 {[%emt 0:08:13]} 19. Qc2 {[%emt 0:03:02]} Bf6 {[%emt 0:00:
48]} 20. Bxf6 {[%emt 0:13:12]} Nxf6 {[%emt 0:00:21]} 21. Rd2 {[%emt 0:05:12]}
Ne4 {[%emt 0:03:50]} 22. Re2 {[%emt 0:00:15]} Rab8 {[%emt 0:03:06]} 23. Rd1 {
[%emt 0:07:00]} Rd6 {[%emt 0:02:16]} 24. h4 {[%emt 0:13:04]} Qe7 {[%emt 0:21:
30]} 25. g3 {[%emt 0:03:51]} h6 {[%emt 0:01:14]} 26. Nd2 {[%emt 0:04:04]} Nc5 {
[%emt 0:00:44]} 27. b4 {[%emt 0:01:15]} Nd3 {[%emt 0:01:56]} 28. Nf3 {[%emt 0:
01:18]} a5 {[%emt 0:05:41]} 29. Nd4 {[%emt 0:02:04]} Rf6 {[%emt 0:02:44]} 30.
e4 {[%emt 0:04:53]} Qe5 {[%emt 0:01:53]} 31. Qc3 {[%emt 0:01:49]} axb4 {[%emt
0:00:12]} 32. axb4 {[%emt 0:00:09]} dxe4 {[%emt 0:01:00]} 33. Qxc4 {[%emt 0:00:
38]} Rxb4 {[%emt 0:01:41]} 34. Qc8+ {[%emt 0:00:16]} Kh7 {[%emt 0:00:01]} 35.
Nc2 {[%emt 0:02:24]} Rb8 {[%emt 0:04:26]} 36. Qc4 {[%emt 0:00:12]} Nb2 {[%emt
0:04:44]} 37. Qd4 {[%emt 0:00:24]} Qxd4 {[%emt 0:01:09]} 1/2-1/2

[Event "Lithuanian Chess League 2021"]
[Site "Various cities"]
[Date "2021.05.15"]
[Round "6.23"]
[White "Narmontas, Raimondas"]
[Black "Kuznecovas, Kevinas"]
[Result "0-1"]
[WhiteElo "2027"]
[BlackElo "1882"]
[PlyCount "82"]
[TimeControl "90/40+30:0"]
[WhiteClock "0:00:49"]
[BlackClock "0:17:52"]

1. e4 {[%emt 0:02:15]} c5 {[%emt 0:00:04]} 2. Nc3 {[%emt 0:00:31]} Nc6 {[%emt
0:00:43]} 3. Bb5 {[%emt 0:00:09]} g6 {[%emt 0:00:54]} 4. Bxc6 {[%emt 0:00:22]}
dxc6 {[%emt 0:00:05]} 5. d3 {[%emt 0:00:11]} Bg7 {[%emt 0:00:59]} 6. Be3 {
[%emt 0:00:19]} b6 {[%emt 0:01:06]} 7. Qd2 {[%emt 0:00:28]} Qc7 {[%emt 0:03:39]
} 8. Nge2 {[%emt 0:03:44]} a5 {[%emt 0:04:43]} 9. O-O {[%emt 0:02:11]} e5 {
[%emt 0:07:31]} 10. f4 {[%emt 0:02:00]} Ne7 {[%emt 0:00:27]} 11. Ng3 {[%emt 0:
05:14]} Bd7 {[%emt 0:13:53]} 12. a3 {[%emt 0:01:24]} f5 {[%emt 0:03:02]} 13.
Na4 {[%emt 0:14:15]} O-O {[%emt 0:10:19]} 14. c3 {[%emt 0:04:36]} Rab8 {[%emt
0:02:42]} 15. Rae1 {[%emt 0:01:33]} Be6 {[%emt 0:04:53]} 16. c4 {[%emt 0:04:57]
} fxe4 {[%emt 0:03:15]} 17. Nxe4 {[%emt 0:00:58]} Nf5 {[%emt 0:00:40]} 18. Ng5
{[%emt 0:02:09]} Bd7 {[%emt 0:02:06]} 19. fxe5 {[%emt 0:06:35]} Nxe3 {[%emt 0:
11:36]} 20. Qxe3 {[%emt 0:01:56]} Rxf1+ {[%emt 0:00:36]} 21. Kxf1 {[%emt 0:00:
18]} Re8 {[%emt 0:00:21]} 22. Nf3 {[%emt 0:17:33]} Bg4 {[%emt 0:00:25]} 23. Re2
{[%emt 0:06:34]} Bxf3 {[%emt 0:00:20]} 24. gxf3 {[%emt 0:00:10]} Rxe5 {[%emt 0:
00:30]} 25. Qf4 {[%emt 0:00:15]} Qe7 {[%emt 0:08:04]} 26. Re4 {[%emt 0:00:27]}
b5 {[%emt 0:02:13]} 27. Nc3 {[%emt 0:07:19]} Rxe4 {[%emt 0:00:15]} 28. Qxe4 {
[%emt 0:05:57]} Qxe4 {[%emt 0:00:56]} 29. Nxe4 {[%emt 0:01:26]} Bxb2 {[%emt 0:
00:08]} 30. cxb5 {[%emt 0:01:29]} cxb5 {[%emt 0:00:10]} 31. Nxc5 {[%emt 0:03:
28]} Bxa3 {[%emt 0:03:32]} 32. Nb3 {[%emt 0:00:20]} Bb4 {[%emt 0:00:05]} 33.
Nd4 {[%emt 0:00:10]} a4 {[%emt 0:00:26]} 34. Nxb5 {[%emt 0:00:06]} a3 {[%emt 0:
00:09]} 35. Nxa3 {[%emt 0:02:07]} Bxa3 {[%emt 0:00:01]} 36. Kf2 {[%emt 0:01:45]
} Bc5+ {[%emt 0:01:14]} 37. Ke2 {[%emt 0:00:15]} Kf7 {[%emt 0:00:16]} 38. f4 {
[%emt 0:02:05]} Ke6 {[%emt 0:00:06]} 39. Kf3 {[%emt 0:01:09]} Kf5 {[%emt 0:00:
04]} 40. h4 {[%emt 0:00:58]} h5 {[%emt 0:00:24]} 41. Kg3 {[%emt 0:00:17]} Be3 {
[%emt 0:00:28]} 0-1

[Event "Lithuanian Chess League 2021"]
[Site "Various cities"]
[Date "2021.05.15"]
[Round "6.24"]
[White "Posaskov, Nikita"]
[Black "Povilaitis, Matas"]
[Result "1/2-1/2"]
[WhiteElo "1706"]
[BlackElo "1519"]
[PlyCount "74"]
[TimeControl "90/40+30:0"]
[WhiteClock "0:00:34"]
[BlackClock "0:01:54"]

1. Nf3 {[%emt 0:00:02]} d5 {[%emt 0:00:06]} 2. d4 {[%emt 0:00:04]} c6 {[%emt 0:
00:11]} 3. c4 {[%emt 0:00:04]} Nf6 {[%emt 0:00:04]} 4. Nc3 {[%emt 0:00:05]} Bf5
{[%emt 0:00:28]} 5. cxd5 {[%emt 0:00:19]} Nxd5 {[%emt 0:00:41]} 6. e3 {[%emt 0:
03:29]} e6 {[%emt 0:01:39]} 7. Bd3 {[%emt 0:01:16]} Bxd3 {[%emt 0:01:28]} 8.
Qxd3 {[%emt 0:00:09]} g6 {[%emt 0:06:32]} 9. e4 {[%emt 0:01:00]} Nb6 {[%emt 0:
02:28]} 10. Bg5 {[%emt 0:05:15]} Be7 {[%emt 0:03:37]} 11. Bxe7 {[%emt 0:23:18]}
Qxe7 {[%emt 0:00:31]} 12. O-O {[%emt 0:00:20]} O-O {[%emt 0:02:11]} 13. Qe3 {
[%emt 0:06:56]} Rd8 {[%emt 0:03:55]} 14. Qh6 {[%emt 0:08:13]} f6 {[%emt 0:33:
50]} 15. h4 {[%emt 0:03:12]} Na6 {[%emt 0:06:01]} 16. Rfd1 {[%emt 0:17:45]} Nc7
{[%emt 0:09:14]} 17. Rac1 {[%emt 0:03:12]} e5 {[%emt 0:10:55]} 18. dxe5 {[%emt
0:00:26]} fxe5 {[%emt 0:00:14]} 19. h5 {[%emt 0:00:03]} Qg7 {[%emt 0:02:08]}
20. Qxg7+ {[%emt 0:00:08]} Kxg7 {[%emt 0:00:07]} 21. hxg6 {[%emt 0:00:08]} hxg6
{[%emt 0:01:13]} 22. Nxe5 {[%emt 0:00:06]} Kf6 {[%emt 0:00:40]} 23. Nd3 {[%emt
0:05:26]} Ne6 {[%emt 0:01:28]} 24. f3 {[%emt 0:02:38]} Rd7 {[%emt 0:01:55]} 25.
b3 {[%emt 0:07:46]} a5 {[%emt 0:01:54]} 26. Nb2 {[%emt 0:00:59]} Rh7 {[%emt 0:
04:24]} 27. Kf2 {[%emt 0:09:06]} Rah8 {[%emt 0:00:57]} 28. Ne2 {[%emt 0:00:27]}
g5 {[%emt 0:00:49]} 29. Nc4 {[%emt 0:00:24]} Nd7 {[%emt 0:02:22]} 30. Nxa5 {
[%emt 0:02:29]} Ndc5 {[%emt 0:00:01]} 31. b4 {[%emt 0:00:30]} Ra8 {[%emt 0:00:
02]} 32. Rc2 {[%emt 0:00:34]} g4 {[%emt 0:01:51]} 33. Nxc6 {[%emt 0:00:33]}
gxf3 {[%emt 0:00:48]} 34. gxf3 {[%emt 0:00:14]} Nxe4+ {[%emt 0:00:23]} 35. fxe4
{[%emt 0:00:09]} bxc6 {[%emt 0:00:05]} 36. Rg1 {[%emt 0:01:04]} Ke5 {[%emt 0:
00:26]} 37. Ng3 {[%emt 0:00:32]} Nd4 {[%emt 0:01:35]} 1/2-1/2